fUST/lending_fUST_20251208
["ID","MTS","AMOUNT","RATE_DAILY","PERIOD"]
[397012726,1765138238696,-232.0,0.0001,2]
[397012728,1765138238705,-762.9964843,0.00010104,2]
[397012730,1765138238714,-161.547,0.00010583,2]
[397012732,1765138238723,-2230.315306,0.00010679,2]
[397012761,1765138238982,-151.0,0.00010679,2]
[397012763,1765138238995,-250.0,0.00010683,3]
[397012765,1765138239005,-250.0,0.00010684,2]
[397012767,1765138239014,-3341.17550626,0.00010685,2]
[397022709,1765139146114,-231.48065534,9.136e-05,2]
[397022758,1765139250089,-198.26880916,9.136e-05,2]
[397022759,1765139250109,-271.31280977,9.462e-05,2]
[397022760,1765139250128,-900.0,9.788e-05,2]
[397022761,1765139250148,-230.0,9.788e-05,2]
[397022762,1765139250167,-399.31076779,9.907e-05,2]
[397022763,1765139250187,-300.0,9.994e-05,2]
[397022764,1765139250208,-300.0,9.994e-05,2]
[397022765,1765139250228,-251.09333355,9.995e-05,2]
[397022766,1765139250250,-500.0,9.995e-05,2]
[397022767,1765139250272,-500.0,9.995e-05,2]
[397022768,1765139250295,-500.0,9.995e-05,2]
[397022769,1765139250317,-462.87880058,9.995e-05,2]
[397022770,1765139250341,-500.0,9.995e-05,2]
[397022771,1765139250362,-500.0,9.995e-05,2]
[397022772,1765139250385,-500.0,9.995e-05,2]
[397022773,1765139250406,-500.0,9.995e-05,2]
[397022774,1765139250433,-500.0,9.995e-05,2]
[397022775,1765139250454,-500.0,9.995e-05,2]
[397022776,1765139250476,-500.0,9.995e-05,2]
[397022777,1765139250497,-500.0,9.995e-05,2]
[397022778,1765139250518,-500.0,9.995e-05,2]
[397022779,1765139250539,-500.0,9.995e-05,2]
[397022780,1765139250561,-500.0,9.995e-05,2]
[397022781,1765139250582,-500.0,9.995e-05,2]
[397022782,1765139250602,-217.0,9.995e-05,2]
[397022783,1765139250622,-744.72111503,9.995e-05,2]
[397022892,1765139432411,-455.0,9.694e-05,2]
[397022894,1765139432420,-3634.79932669,9.695e-05,2]
[397022896,1765139432429,-399.31076779,9.695e-05,2]
[397022898,1765139432440,-230.0,9.695e-05,2]
[397022900,1765139432449,-263.74828419,9.788e-05,2]
[397022960,1765139438328,-636.25171581,9.788e-05,2]
[397022962,1765139438340,-300.0,9.994e-05,2]
[397022964,1765139438353,-179.0,9.994e-05,2]
[397022967,1765139438366,-1200.0,9.995e-05,2]
[397022969,1765139438378,-271.40499956,9.995e-05,2]
[397022971,1765139438392,-500.0,9.998e-05,2]
[397022974,1765139438405,-384.76431118,9.998e-05,2]
[397022976,1765139438418,-9598.42101028,9.999e-05,2]
[397023483,1765139443496,-689.465,9.999e-05,2]
[397031687,1765140430082,-800.0,9.788e-05,2]
[397031688,1765140430103,-230.0,9.788e-05,2]
[397031689,1765140430122,-273.31842199,9.814e-05,2]
[397031690,1765140430141,-399.31076779,9.917e-05,2]
[397031691,1765140430163,-434.41721027,9.998e-05,2]
[397031692,1765140430183,-300.0,9.998e-05,2]
[397031693,1765140430203,-709.3411847,9.999e-05,2]
[397031699,1765140439081,-996.34675323,9.999e-05,2]
[397031704,1765140449109,-508.43827742,9.999e-05,2]
[397031990,1765140638564,-800.0,9.788e-05,2]
[397031992,1765140638574,-230.0,9.788e-05,2]
[397031994,1765140638584,-250.0,9.998e-05,2]
[397031996,1765140638594,-300.0,9.998e-05,2]
[397031999,1765140638604,-273.37996951,9.999e-05,2]
[397032000,1765140638614,-5884.90856425,9.999e-05,2]
[397032002,1765140638623,-399.31076779,9.999e-05,2]
[397032004,1765140638633,-3000.0,0.0001,2]
[397032006,1765140638642,-10000.0,0.0001,2]
[397032009,1765140638652,-154.246,0.00010399,2]
[397032011,1765140638661,-2535.9921572,0.00010499,2]
[397032012,1765140638671,-500.0,0.00010499,2]
[397032014,1765140638681,-210.0985766,0.00010499,2]
[397032017,1765140638691,-500.0,0.00010499,2]
[397032019,1765140638701,-500.0,0.00010499,2]
[397032021,1765140638710,-500.0,0.00010499,2]
[397032023,1765140638720,-500.0,0.00010499,2]
[397032025,1765140638729,-500.0,0.00010499,2]
[397032027,1765140638739,-500.0,0.00010499,2]
[397032029,1765140638749,-496.04965285,0.00010499,2]
[397032030,1765140638761,-500.0,0.00010499,2]
[397032032,1765140638770,-500.0,0.00010499,2]
[397032034,1765140638779,-10450.06679524,0.000105,2]
[397032037,1765140638792,-291.300155,0.000105,2]
[397032216,1765140640665,-399.31076779,9.993e-05,2]
[397032218,1765140640675,-528.49656881,0.000105,2]
[397032224,1765140640722,-429.42624312,0.000105,2]
[397032481,1765140643749,-2740.0,0.000105,2]
[397032482,1765140643765,-447.54,0.000105,2]
[397032483,1765140643803,-666.15559538,0.000105,2]
[397032744,1765140646425,-1762.37238713,0.000105,2]
[397032751,1765140646481,-580.99999998,0.000105,2]
[397032758,1765140646539,-7582.56999708,0.000105,2]
[397032760,1765140646550,-2214.59263213,0.000105,2]
[397032762,1765140646560,-596.8430889,0.000105,2]
[397032764,1765140646569,-596.8430889,0.000105,2]
[397032766,1765140646578,-596.8430889,0.000105,2]
[397032768,1765140646587,-753.773749,0.000105,2]
[397032770,1765140646597,-151.0,0.00010679,2]
[397032772,1765140646606,-2230.315306,0.00010679,2]
[397032774,1765140646616,-308.15673997,0.00010685,2]
[397032776,1765140646627,-258.24330603,0.00010685,2]
[397032778,1765140646636,-566.400046,0.00010685,2]
[397032780,1765140646645,-566.400046,0.00010685,2]
[397032782,1765140646655,-566.400046,0.00010685,2]
[397032784,1765140646664,-566.400046,0.00010685,2]
[397032786,1765140646673,-566.400046,0.00010685,2]
[397032788,1765140646683,-566.400046,0.00010685,2]
[397032789,1765140646692,-566.400046,0.00010685,2]
[397032790,1765140646702,-151.0,0.00010685,2]
[397032791,1765140646711,-151.0,0.00010685,2]
[397032792,1765140646720,-151.0,0.00010685,2]
[397032793,1765140646730,-10000.0,0.00010685,2]
[397032794,1765140646740,-10000.0,0.00010685,2]
[397032795,1765140646749,-3552.83253149,0.00010685,2]
[397040917,1765141626102,-700.0,9.788e-05,2]
[397040918,1765141626122,-230.0,9.788e-05,2]
[397040919,1765141626142,-287.23169448,9.814e-05,2]
[397040920,1765141626171,-399.31076779,9.934e-05,2]
[397040921,1765141626190,-633.45753773,9.998e-05,2]
[397040922,1765141639101,-566.54246227,9.998e-05,2]
[397040923,1765141639123,-300.0,9.998e-05,2]
[397040924,1765141639143,-300.0,9.999e-05,2]
[397040925,1765141639165,-1200.0,9.999e-05,2]
[397040926,1765141639184,-200.0,9.999e-05,2]
[397040927,1765141639203,-10000.0,0.0001,2]
[397040928,1765141639223,-826.64664114,0.00010579,2]
[397040929,1765141646093,-542.44628783,0.00010579,2]
[397040937,1765141832610,-300.0,9.641e-05,2]
[397040938,1765141832619,-229.0,9.641e-05,2]
[397040939,1765141832629,-12711.5199775,9.642e-05,2]
[397040940,1765141832638,-700.0,9.788e-05,2]
[397040941,1765141832648,-399.31076779,9.994e-05,2]
[397040942,1765141832657,-2568.65015174,0.0001,2]
[397040990,1765141838638,-500.0,0.0001,2]
[397040997,1765141838693,-338.53814147,0.0001,2]
[397041757,1765141846594,-1483.80832783,0.0001,2]
[397045557,1765142733090,-231.48065534,9.242e-05,2]
[397045558,1765142843104,-225.0,9.239e-05,2]
[397045564,1765142850084,-174.31076779,9.239e-05,2]
[397045565,1765142850106,-299.06781748,9.249e-05,2]
[397045566,1765142850127,-226.0,9.261e-05,2]
[397045567,1765142850356,-699.95894489,9.277e-05,2]
[397045568,1765142850377,-292.75237064,9.277e-05,2]
[397045569,1765142850397,-291.87868026,9.277e-05,2]
[397045570,1765142850417,-292.1693925,9.277e-05,2]
[397045571,1765142850436,-700.0,9.279e-05,2]
[397045572,1765142850459,-1200.0,9.993e-05,2]
[397045573,1765142850485,-300.0,9.993e-05,2]
[397045574,1765142850506,-300.0,9.993e-05,2]
[397045575,1765142850526,-279.0,9.994e-05,2]
[397045576,1765142850546,-217.0,9.994e-05,2]
[397045577,1765142850566,-500.0,9.994e-05,2]
[397045578,1765142850586,-635.72506811,9.994e-05,2]
[397045579,1765142850608,-500.0,9.994e-05,2]
[397045580,1765142850630,-500.0,9.994e-05,2]
[397045581,1765142850652,-500.0,9.994e-05,2]
[397045582,1765142850671,-500.0,9.994e-05,2]
[397045583,1765142850692,-500.0,9.994e-05,2]
[397045584,1765142850715,-500.0,9.994e-05,2]
[397045585,1765142850736,-538.1840002,9.994e-05,2]
[397045586,1765142850758,-223.54455273,9.994e-05,2]
[397045587,1765142850781,-500.0,9.994e-05,2]
[397045588,1765142850802,-500.0,9.994e-05,2]
[397045589,1765142850824,-500.0,9.994e-05,2]
[397045590,1765142850846,-266.85438803,9.994e-05,2]
[397045593,1765142947911,-2820.6167025,9.21e-05,2]
[397045594,1765142947931,-399.31076779,9.21e-05,2]
[397045595,1765142947949,-471.41995871,9.279e-05,2]
[397045675,1765143037862,-128.58004129,9.279e-05,2]
[397045677,1765143037873,-227.0,9.279e-05,2]
[397045679,1765143037882,-514.84915231,9.993e-05,2]
[397045682,1765143037893,-685.15084769,9.993e-05,2]
[397045684,1765143037902,-1200.0,9.998e-05,2]
[397045686,1765143037912,-250.0,9.999e-05,2]
[397045688,1765143037922,-300.0,9.999e-05,2]
[397045690,1765143037931,-170.90933335,9.999e-05,2]
[397045691,1765143037939,-387.45740478,9.999e-05,2]
[397045693,1765143037950,-500.0,9.999e-05,2]
[397045695,1765143037960,-500.0,9.999e-05,2]
[397045698,1765143037969,-500.0,9.999e-05,2]
[397045700,1765143037979,-582.18550605,9.999e-05,2]
[397045702,1765143037988,-500.0,9.999e-05,2]
[397045704,1765143037997,-500.0,9.999e-05,2]
[397045706,1765143038006,-500.0,9.999e-05,2]
[397045708,1765143038015,-500.0,9.999e-05,2]
[397045710,1765143038024,-500.0,9.999e-05,2]
[397045712,1765143038034,-500.0,9.999e-05,2]
[397045714,1765143038043,-499.99999999,9.999e-05,2]
[397045716,1765143038052,-6798.17686434,0.0001,2]
[397045718,1765143038064,-2199.98267712,0.0001,2]
[397045721,1765143038084,-1001.84045854,0.0001,2]
[397045723,1765143038094,-699.95894489,0.0001012,2]
[397045725,1765143038103,-2230.315306,0.00010201,2]
[397045727,1765143038113,-5892.78576606,0.00010206,2]
[397045729,1765143038122,-500.0,0.00010206,2]
[397045731,1765143038131,-256.33908335,0.00010206,2]
[397045733,1765143038141,-500.0,0.00010206,2]
[397045735,1765143038151,-500.0,0.00010206,2]
[397045737,1765143038161,-500.0,0.00010206,2]
[397045739,1765143038172,-497.234757,0.00010206,2]
[397045741,1765143038182,-500.0,0.00010206,2]
[397045743,1765143038192,-500.0,0.00010206,2]
[397045745,1765143038201,-435259.90177709,0.00010207,2]
[397045748,1765143038212,-540.73001011,0.00010207,2]
[397045750,1765143038223,-289.31620544,0.00010207,2]
[397045753,1765143038242,-453910.05200736,0.00010207,2]
[397045755,1765143038251,-156.587,0.00010301,2]
[397045757,1765143038260,-151.0,0.00010301,2]
[397045759,1765143038269,-162.48,0.00010306,2]
[397045761,1765143038278,-151.0,0.00010306,2]
[397045763,1765143038288,-151.0,0.00010306,2]
[397045765,1765143038297,-151.0,0.00010306,2]
[397045766,1765143038306,-151.0,0.00010306,2]
[397045769,1765143038316,-236.61727461,0.00010306,2]
[397045771,1765143038325,-132943.8520166,0.00010307,2]
[397045772,1765143038334,-2416.6710518,0.00010307,2]
[397045774,1765143038344,-151.0,0.00010307,2]
[397045776,1765143038353,-151.0,0.00010307,2]
[397045779,1765143038363,-151.0,0.00010307,2]
[397045780,1765143038372,-151.0,0.00010307,2]
[397045782,1765143038382,-151.0,0.00010585,2]
[397045784,1765143038391,-151.0,0.00010585,2]
[397045786,1765143038400,-151.0,0.00010585,2]
[397045789,1765143038410,-151.0,0.00010585,2]
[397045790,1765143038419,-600.0,0.00010649,2]
[397045792,1765143038428,-500.0,0.00010649,2]
[397045795,1765143038438,-151.0,0.00010685,2]
[397045797,1765143038447,-151.0,0.00010685,2]
[397045799,1765143038456,-151.0,0.00010685,2]
[397045801,1765143038465,-151.0,0.00010685,2]
[397045802,1765143038474,-151.0,0.00010685,2]
[397045804,1765143038483,-151.0,0.00010685,2]
[397045807,1765143038493,-151.0,0.00010685,2]
[397045808,1765143038502,-151.0,0.00010685,2]
[397045809,1765143038511,-151.0,0.00010685,2]
[397045810,1765143038520,-151.0,0.00010685,2]
[397045811,1765143038530,-151.0,0.00010685,2]
[397045812,1765143038539,-151.0,0.00010685,2]
[397045813,1765143038548,-151.0,0.00010685,2]
[397045814,1765143038561,-158.267324,0.00010685,2]
[397045815,1765143038570,-339.840028,0.00010685,2]
[397045816,1765143038580,-339.840028,0.00010685,2]
[397045817,1765143038589,-1227.45509,0.00010685,2]
[397045818,1765143038599,-1227.45509,0.00010685,2]
[397045819,1765143038608,-1227.45509,0.00010685,2]
[397045820,1765143038617,-1227.45509,0.00010685,2]
[397045821,1765143038627,-1227.45509,0.00010685,2]
[397045822,1765143038636,-1227.45509,0.00010685,2]
[397045823,1765143038646,-1227.45509,0.00010685,2]
[397045824,1765143038655,-1227.45509,0.00010685,2]
[397045825,1765143038664,-1227.45509,0.00010685,2]
[397045826,1765143038673,-1227.45509,0.00010685,2]
[397045827,1765143038682,-1227.45509,0.00010685,2]
[397045828,1765143038691,-1227.45509,0.00010685,2]
[397045829,1765143038700,-1227.45509,0.00010685,2]
[397045830,1765143038709,-1227.45509,0.00010685,2]
[397045831,1765143038719,-1227.45509,0.00010685,2]
[397045832,1765143038728,-1227.45509,0.00010685,2]
[397045834,1765143038737,-195.383016,0.00010685,2]
[397045836,1765143038746,-195.383016,0.00010685,2]
[397045838,1765143038755,-195.383016,0.00010685,2]
[397045840,1765143038765,-195.383016,0.00010685,2]
[397045842,1765143038774,-195.383016,0.00010685,2]
[397045844,1765143038783,-195.383016,0.00010685,2]
[397045846,1765143038792,-195.383016,0.00010685,2]
[397045847,1765143038801,-195.383016,0.00010685,2]
[397045849,1765143038810,-195.383016,0.00010685,2]
[397045851,1765143038820,-195.383016,0.00010685,2]
[397045853,1765143038829,-195.383016,0.00010685,2]
[397045856,1765143038839,-195.383016,0.00010685,2]
[397045858,1765143038848,-195.383016,0.00010685,2]
[397045860,1765143038858,-195.383016,0.00010685,2]
[397045862,1765143038869,-195.383016,0.00010685,2]
[397045864,1765143038878,-195.383016,0.00010685,2]
[397045865,1765143038888,-193.428197,0.00010685,2]
[397045867,1765143038898,-193.428197,0.00010685,2]
[397045869,1765143038907,-521.409987,0.00010685,2]
[397045871,1765143038917,-193.428197,0.00010685,2]
[397045873,1765143038927,-521.409987,0.00010685,2]
[397045876,1765143038936,-193.428197,0.00010685,2]
[397045878,1765143038946,-521.409987,0.00010685,2]
[397045880,1765143038955,-193.428197,0.00010685,2]
[397045881,1765143038966,-521.409987,0.00010685,2]
[397045883,1765143038976,-193.428197,0.00010685,2]
[397045885,1765143038985,-521.409987,0.00010685,2]
[397045887,1765143038995,-193.428197,0.00010685,2]
[397045889,1765143039005,-521.409987,0.00010685,2]
[397045891,1765143039014,-193.428197,0.00010685,2]
[397045893,1765143039023,-521.409987,0.00010685,2]
[397045895,1765143039033,-521.409987,0.00010685,2]
[397045897,1765143039043,-283.42561,0.00010685,2]
[397045899,1765143039053,-283.42561,0.00010685,2]
[397045901,1765143039063,-283.42561,0.00010685,2]
[397045903,1765143039073,-283.42561,0.00010685,2]
[397045905,1765143039083,-283.42561,0.00010685,2]
[397045907,1765143039093,-283.42561,0.00010685,2]
[397045909,1765143039103,-283.42561,0.00010685,2]
[397045912,1765143039113,-283.42561,0.00010685,2]
[397045931,1765143039293,-151.0,0.00010685,2]
[397045933,1765143039305,-151.0,0.00010685,2]
[397045935,1765143039314,-151.0,0.00010685,2]
[397045937,1765143039323,-151.0,0.00010685,2]
[397045939,1765143039332,-151.0,0.00010685,2]
[397045941,1765143039342,-151.0,0.00010685,2]
[397045943,1765143039351,-151.0,0.00010685,2]
[397045945,1765143039360,-151.0,0.00010685,2]
[397045947,1765143039370,-171.707036,0.00010685,2]
[397045949,1765143039379,-151.0,0.00010685,2]
[397045950,1765143039388,-217.917856,0.00010685,2]
[397045952,1765143039398,-151.0,0.00010685,2]
[397045954,1765143039406,-151.0,0.00010685,2]
[397045957,1765143039416,-1109.933651,0.00010685,2]
[397045960,1765143039425,-1109.933651,0.00010685,2]
[397045963,1765143039434,-1109.933651,0.00010685,2]
[397045965,1765143039443,-1109.933651,0.00010685,2]
[397045967,1765143039452,-1109.933651,0.00010685,2]
[397045969,1765143039461,-1109.933651,0.00010685,2]
[397045971,1765143039470,-1109.933651,0.00010685,2]
[397045974,1765143039479,-1109.933651,0.00010685,2]
[397045976,1765143039489,-539.971964,0.00010685,2]
[397045978,1765143039498,-539.971964,0.00010685,2]
[397045980,1765143039507,-539.971964,0.00010685,2]
[397045982,1765143039516,-539.971964,0.00010685,2]
[397045984,1765143039525,-539.971964,0.00010685,2]
[397045986,1765143039535,-539.971964,0.00010685,2]
[397045988,1765143039544,-539.971964,0.00010685,2]
[397045990,1765143039556,-539.971964,0.00010685,2]
[397045992,1765143039565,-2710.24236,0.00010685,2]
[397045994,1765143039575,-2710.24236,0.00010685,2]
[397045996,1765143039585,-2710.24236,0.00010685,2]
[397045997,1765143039595,-2710.24236,0.00010685,2]
[397045999,1765143039605,-2710.24236,0.00010685,2]
[397046001,1765143039614,-2710.24236,0.00010685,2]
[397046003,1765143039623,-2710.24236,0.00010685,2]
[397046005,1765143039634,-2710.24236,0.00010685,2]
[397046007,1765143039643,-151.0,0.00010685,2]
[397046009,1765143039652,-194.731791,0.00010685,2]
[397046011,1765143039661,-9670.744859,0.00010685,2]
[397046013,1765143039669,-9670.744859,0.00010685,2]
[397046015,1765143039678,-9670.744859,0.00010685,2]
[397046017,1765143039688,-9670.744859,0.00010685,2]
[397046019,1765143039698,-9670.744859,0.00010685,2]
[397046021,1765143039707,-9670.744859,0.00010685,2]
[397046023,1765143039716,-9670.744859,0.00010685,2]
[397046025,1765143039725,-9670.744859,0.00010685,2]
[397046027,1765143039734,-151.0,0.00010685,2]
[397046029,1765143039744,-151.0,0.00010685,2]
[397046031,1765143039752,-244.312446,0.00010685,2]
[397046033,1765143039761,-151.0,0.00010685,2]
[397046035,1765143039771,-151.0,0.00010685,2]
[397046037,1765143039782,-151.0,0.00010685,2]
[397046039,1765143039792,-151.0,0.00010685,2]
[397046041,1765143039802,-151.0,0.00010685,2]
[397046043,1765143039811,-151.0,0.00010685,2]
[397046045,1765143039820,-151.0,0.00010685,2]
[397046047,1765143039830,-177.116344,0.00010685,2]
[397046049,1765143039839,-151.0,0.00010685,2]
[397046051,1765143039847,-151.0,0.00010685,2]
[397046053,1765143039857,-170.14,0.00010685,2]
[397046055,1765143039866,-333.0,0.00010685,2]
[397046057,1765143039875,-339.840028,0.00010685,2]
[397046059,1765143039884,-339.840025,0.00010685,2]
[397046061,1765143039893,-500.0,0.00010685,2]
[397046062,1765143039902,-500.0,0.00010685,2]
[397046065,1765143039912,-500.0,0.00010685,2]
[397046067,1765143039921,-151.0,0.00010685,2]
[397046068,1765143039931,-546.0,0.00010685,2]
[397046070,1765143039941,-151.0,0.00010685,2]
[397046072,1765143039950,-151.0,0.00010685,2]
[397046074,1765143039960,-151.0,0.00010685,2]
[397046076,1765143039969,-151.0,0.00010685,2]
[397046078,1765143039977,-151.0,0.00010685,2]
[397046080,1765143039986,-262.138631,0.00010685,2]
[397046082,1765143039996,-500.0,0.00010685,2]
[397046084,1765143040005,-1227.45509,0.00010685,2]
[397046086,1765143040015,-1227.45509,0.00010685,2]
[397046088,1765143040024,-1227.45509,0.00010685,2]
[397046090,1765143040034,-1227.455086,0.00010685,2]
[397046092,1765143040043,-195.383016,0.00010685,2]
[397046094,1765143040052,-195.383016,0.00010685,2]
[397046096,1765143040061,-195.383016,0.00010685,2]
[397046098,1765143040070,-195.383019,0.00010685,2]
[397046100,1765143040079,-193.428197,0.00010685,2]
[397046102,1765143040088,-193.428197,0.00010685,2]
[397046104,1765143040098,-193.428197,0.00010685,2]
[397046106,1765143040108,-521.409987,0.00010685,2]
[397046108,1765143040118,-193.428197,0.00010685,2]
[397046110,1765143040127,-521.409987,0.00010685,2]
[397046112,1765143040136,-193.428197,0.00010685,2]
[397046113,1765143040144,-521.409987,0.00010685,2]
[397046115,1765143040154,-193.428197,0.00010685,2]
[397046117,1765143040163,-521.409987,0.00010685,2]
[397046119,1765143040173,-193.428197,0.00010685,2]
[397046121,1765143040182,-521.409987,0.00010685,2]
[397046123,1765143040191,-193.428197,0.00010685,2]
[397046125,1765143040200,-521.409987,0.00010685,2]
[397046127,1765143040209,-193.428197,0.00010685,2]
[397046129,1765143040218,-521.409987,0.00010685,2]
[397046131,1765143040227,-193.428197,0.00010685,2]
[397046133,1765143040236,-193.428197,0.00010685,2]
[397046135,1765143040245,-521.409987,0.00010685,2]
[397046137,1765143040254,-193.428195,0.00010685,2]
[397046139,1765143040264,-521.409987,0.00010685,2]
[397046141,1765143040274,-521.409987,0.00010685,2]
[397046143,1765143040283,-521.409987,0.00010685,2]
[397046145,1765143040292,-521.409989,0.00010685,2]
[397046147,1765143040301,-283.42561,0.00010685,2]
[397046149,1765143040310,-283.42561,0.00010685,2]
[397046151,1765143040319,-151.0,0.00010685,2]
[397046153,1765143040328,-283.42561,0.00010685,2]
[397046155,1765143040338,-283.42561,0.00010685,2]
[397046157,1765143040347,-283.42561,0.00010685,2]
[397046159,1765143040356,-283.42561,0.00010685,2]
[397046161,1765143040365,-151.0,0.00010685,2]
[397046163,1765143040374,-283.42561,0.00010685,2]
[397046165,1765143040383,-283.42561,0.00010685,2]
[397046167,1765143040391,-283.42561,0.00010685,2]
[397046169,1765143040400,-151.0,0.00010685,2]
[397046171,1765143040409,-283.42561,0.00010685,2]
[397046172,1765143040418,-283.42561,0.00010685,2]
[397046174,1765143040427,-500.0,0.00010685,2]
[397046176,1765143040437,-283.425602,0.00010685,2]
[397046178,1765143040446,-151.0,0.00010685,2]
[397046181,1765143040456,-500.0,0.00010685,2]
[397046183,1765143040465,-151.0,0.00010685,2]
[397046184,1765143040475,-151.0,0.00010685,2]
[397046186,1765143040483,-151.0,0.00010685,2]
[397046188,1765143040492,-500.0,0.00010685,2]
[397046190,1765143040501,-151.0,0.00010685,2]
[397046192,1765143040510,-151.0,0.00010685,2]
[397046194,1765143040518,-151.0,0.00010685,2]
[397046196,1765143040527,-151.0,0.00010685,2]
[397046198,1765143040537,-151.0,0.00010685,2]
[397046200,1765143040546,-151.0,0.00010685,2]
[397046201,1765143040569,-151.0,0.00010685,2]
[397046204,1765143040585,-151.0,0.00010685,2]
[397046207,1765143040599,-151.0,0.00010685,2]
[397046209,1765143040608,-151.0,0.00010685,2]
[397046211,1765143040618,-151.0,0.00010685,2]
[397046212,1765143040627,-151.0,0.00010685,2]
[397046215,1765143040640,-500.0,0.00010685,2]
[397046217,1765143040649,-151.0,0.00010685,2]
[397046219,1765143040660,-153.00637907,0.00010685,2]
[397046221,1765143040671,-151.0,0.00010685,2]
[397046223,1765143040681,-151.0,0.00010685,2]
[397046225,1765143040691,-1109.933651,0.00010685,2]
[397046227,1765143040700,-1109.933651,0.00010685,2]
[397046229,1765143040709,-1109.933651,0.00010685,2]
[397046231,1765143040719,-1109.933651,0.00010685,2]
[397046233,1765143040728,-1109.933651,0.00010685,2]
[397046235,1765143040737,-1109.933651,0.00010685,2]
[397046237,1765143040747,-1109.933651,0.00010685,2]
[397046239,1765143040757,-1109.933651,0.00010685,2]
[397046241,1765143040766,-1109.933651,0.00010685,2]
[397046243,1765143040775,-1109.933651,0.00010685,2]
[397046245,1765143040785,-1109.933651,0.00010685,2]
[397046246,1765143040795,-1109.933646,0.00010685,2]
[397046248,1765143040805,-539.971964,0.00010685,2]
[397046250,1765143040814,-539.971964,0.00010685,2]
[397046252,1765143040825,-539.971964,0.00010685,2]
[397046255,1765143040835,-539.971964,0.00010685,2]
[397046257,1765143040846,-539.971964,0.00010685,2]
[397046259,1765143040855,-539.971964,0.00010685,2]
[397046261,1765143040864,-539.971964,0.00010685,2]
[397046263,1765143040873,-539.971964,0.00010685,2]
[397046265,1765143040882,-539.971964,0.00010685,2]
[397046267,1765143040891,-539.971964,0.00010685,2]
[397046269,1765143040901,-539.971964,0.00010685,2]
[397046271,1765143040910,-539.971966,0.00010685,2]
[397046273,1765143040919,-500.0,0.00010685,2]
[397046275,1765143040929,-500.0,0.00010685,2]
[397046277,1765143040939,-2710.24236,0.00010685,2]
[397046279,1765143040949,-2710.24236,0.00010685,2]
[397046281,1765143040958,-2710.24236,0.00010685,2]
[397046283,1765143040967,-2710.24236,0.00010685,2]
[397046285,1765143040978,-2710.24236,0.00010685,2]
[397046287,1765143040987,-2710.24236,0.00010685,2]
[397046289,1765143040996,-2710.24236,0.00010685,2]
[397046291,1765143041006,-2710.24236,0.00010685,2]
[397046293,1765143041015,-2710.24236,0.00010685,2]
[397046295,1765143041025,-2710.24236,0.00010685,2]
[397046297,1765143041035,-2710.24236,0.00010685,2]
[397046299,1765143041046,-2710.24236317,0.00010685,2]
[397046301,1765143041057,-9670.744859,0.00010685,2]
[397046303,1765143041067,-9670.744859,0.00010685,2]
[397046305,1765143041078,-9670.744859,0.00010685,2]
[397046307,1765143041090,-9670.744859,0.00010685,2]
[397046309,1765143041103,-9670.744859,0.00010685,2]
[397046311,1765143041114,-9670.744859,0.00010685,2]
[397046313,1765143041125,-9670.744859,0.00010685,2]
[397046316,1765143041136,-9670.744859,0.00010685,2]
[397046318,1765143041147,-9670.744859,0.00010685,2]
[397046320,1765143041157,-9670.744859,0.00010685,2]
[397046321,1765143041168,-9670.744859,0.00010685,2]
[397046323,1765143041178,-9670.744854,0.00010685,2]
[397046326,1765143041189,-151.0,0.00010685,2]
[397046328,1765143041199,-151.0,0.00010685,2]
[397046330,1765143041209,-151.0,0.00010685,2]
[397046332,1765143041221,-771.0,0.000107,2]
[397046333,1765143041236,-1139.87371635,0.000107,2]
[397046336,1765143041247,-1790.68219396,0.00010705,2]